bitfinex-derivatives/quotes_SOLF0:USTF0_20241230
["timestamp","ask_amount","ask_price","bid_price","bid_amount"]
[1735536944912,2.6325,190.34,190.28,2.6332]
[1735536945417,13.27551067,190.39,190.27,7.8043]
[1735536945920,2.6328,190.32,190.27,7.8043]
[1735536946311,13.27551067,190.36,190.27,3.1]
[1735536946717,2.6333,190.28,190.27,3.1]
[1735536947916,13.27551067,190.39,190.27,3.1]
[1735536949418,16.33911067,190.42,190.29,13.27551067]
[1735536950821,2.6328,190.32,190.29,13.27551067]
[1735536951925,16.33911067,190.42,190.29,13.27551067]
[1735536953525,2.6328,190.32,190.29,13.27551067]
[1735536953727,13.27551067,190.39,190.27,3.1]
[1735536955919,2.6333,190.28,190.27,3.1]
[1735536959018,2.6331,190.3,190.27,3.1]
[1735536959223,31.8521355,190.41,190.29,13.27551067]
[1735536959717,3.1,190.41,190.29,13.27551067]
[1735536961227,2.6324,190.35,190.3,4.08295113]
[1735536961423,3.1,190.41,190.29,13.27551067]
[1735536961629,16.33911067,190.42,190.3,4.08516349]
[1735536961829,16.33911067,190.42,190.29,13.27551067]
[1735536962030,16.33911067,190.42,190.3,4.0846193]
[1735536962230,16.33911067,190.42,190.29,15.90861067]
[1735536962433,16.33911067,190.42,190.3,4.08561274]
[1735536962728,16.33911067,190.42,190.29,15.90861067]
[1735536962922,16.33911067,190.42,190.3,4.0852277]
[1735536963122,3.0636,190.42,190.32,13.27551067]
[1735536963323,3.0636,190.42,190.33,3.1]
[1735536964526,2.6322,190.36,190.33,3.1]
[1735536966129,2.6325,190.34,190.33,3.1]
[1735536973539,8.50061019,190.34,190.22,1.5818]
[1735536973731,8.50061019,190.34,190.27,8.50061019]
[1735536974037,2.6335,190.27,190.25,8.50061019]
[1735536974237,2.6335,190.27,190.26,4.09334956]
[1735536974537,2.6337,190.25,190.22,14.8719531]
[1735536974737,2.6337,190.25,190.23,7.19469982]
[1735536974930,2.6337,190.25,190.24,4.09469982]
[1735536975338,2.6337,190.25,190.24,7.19469982]
[1735536975638,2.6337,190.25,190.24,4.09469982]
[1735536975836,2.6339,190.24,190.23,3.1]
[1735536976133,13.2901531,190.32,190.21,4.7151]
[1735536976528,2.634,190.24,190.22,4.09810279]
[1735536976730,2.634,190.24,190.21,4.7151]
[1735536976930,13.2901531,190.32,190.22,4.09799536]
[1735536977130,13.2901531,190.32,190.21,3.1]
[1735536977332,13.2901531,190.32,190.22,4.09923856]
[1735536977537,13.2901531,190.32,190.19,13.2901531]
[1735536977538,13.2901531,190.32,190.2,3.1]
[1735536977738,13.2901531,190.32,190.21,4.09915009]
[1735536978038,2.6343,190.21,190.2,3.1]
[1735536978239,2.6343,190.21,190.2,7.19928548]
[1735536978741,2.6347,190.19,190.16,3.1]
[1735536978934,13.2901531,190.26,190.17,4.10002341]
[1735536979133,13.2901531,190.26,190.16,3.1]
[1735536979438,13.2901531,190.26,190.17,4.10003998]
[1735536979640,13.2901531,190.26,190.15,16.3901531]
[1735536979844,2.6341,190.22,190.15,3.1]
[1735536980137,4.7713,190.25,190.15,3.1]
[1735536980339,4.7713,190.25,190.16,4.09941185]
[1735536980640,2.6348,190.18,190.15,3.1]
[1735536980941,2.6348,190.18,190.16,4.09841032]
[1735536981140,4.7713,190.25,190.15,3.1]
[1735536981141,4.7713,190.25,190.17,4.09823083]
[1735536981438,4.7713,190.25,190.18,4.09899208]
[1735536981627,2.6343,190.22,190.15,19.0252531]
[1735536981828,2.6343,190.22,190.16,4.09775744]
[1735536982033,2.6343,190.22,190.17,4.09774512]
[1735536982237,2.6343,190.22,190.18,4.09774512]
[1735536982434,2.6343,190.21,190.15,19.0252531]
[1735536982630,2.6343,190.21,190.16,4.09719121]
[1735536982833,2.6343,190.21,190.17,4.09719121]
[1735536983029,2.6343,190.21,190.18,4.09719121]
[1735536983243,2.6343,190.21,190.15,19.0252531]
[1735536983537,2.6343,190.21,190.16,4.09718881]
[1735536983737,2.6343,190.21,190.17,4.09718881]
[1735536983937,2.6343,190.21,190.15,19.0252531]
[1735536984140,2.6343,190.21,190.16,4.09603869]
[1735536984339,2.6342,190.22,190.17,4.09603869]
[1735536984638,13.2901531,190.29,190.15,19.0252531]
[1735536984837,13.2901531,190.29,190.16,4.09486591]
[1735536985039,13.2901531,190.29,190.15,19.0252531]
[1735536985339,13.2901531,190.26,190.16,4.09485151]
[1735536985538,13.2901531,190.26,190.16,3.1]
[1735536987148,2.6348,190.18,190.16,3.1]
[1735536987442,2.6348,190.18,190.15,3.1]
[1735536988541,2.6342,190.22,190.15,3.1]
[1735536988744,13.2901531,190.26,190.15,3.1]
[1735536989136,13.2901531,190.23,190.12,34.2112448]
[1735536989341,16.3901531,190.23,190.1,6.1978]
[1735536989542,1.4925,190.22,190.1,6.1978]
[1735536989744,3.0461,190.22,190.1,6.1978]
[1735536989943,2.6354,190.14,190.1,6.1978]
[1735536990146,2.6354,190.14,190.1,3.0978]
[1735536990344,3.0461,190.22,190.11,3.1]
[1735536991445,2.6351,190.15,190.11,3.1]
[1735536992136,1.6234,190.24,190.12,13.2901531]
[1735536992336,16.5415531,190.29,190.15,13.2901531]
[1735536992542,2.6341,190.23,190.18,13.2901531]
[1735536993239,1.6338,190.29,190.18,13.2901531]
[1735536993439,1.6338,190.29,190.19,5.62354093]
[1735536993643,1.6338,190.29,190.19,1.5416]
[1735536994542,2.634,190.23,190.19,1.5416]
[1735536994741,1.6338,190.29,190.19,1.5416]
[1735536996545,14.9239531,190.29,190.19,1.5416]
[1735536996847,14.9239531,190.29,190.19,3.1]
[1735536997356,13.2901531,190.26,190.15,3.1]
[1735536997543,2.635,190.16,190.15,3.1]
[1735536998754,2.635,190.16,190.13,4.6294]
[1735537000156,2.6352,190.15,190.13,3.1]
[1735537001155,13.2901531,190.23,190.1,3.1821]
[1735537001452,2.6352,190.14,190.11,3.1]
[1735537004459,16.3901531,190.23,190.1,3.1821]
[1735537004659,13.2901531,190.2,190.06,13.2901531]
[1735537004861,13.2901531,190.2,190.07,3.1]
[1735537005158,1.4733,190.19,190.07,3.1]
[1735537005465,2.6351,190.16,190.07,3.1]
[1735537005667,1.4733,190.19,190.08,3.1]
[1735537006466,2.6357,190.11,190.08,3.1]
[1735537007368,2.6358,190.1,190.06,13.2901531]
[1735537007560,1.4733,190.19,190.08,3.1]
[1735537007757,2.635,190.16,190.09,13.2901531]
[1735537007962,3.1511,190.22,190.09,14.8623531]
[1735537008167,3.1511,190.22,190.11,2.6357]
[1735537008361,3.1511,190.22,190.12,13.2901531]
[1735537008557,1.5203,190.25,190.13,3.1]
[1735537008868,1.5203,190.25,190.15,15.9252531]
[1735537009968,1.5203,190.25,190.15,13.2901531]
[1735537010367,1.5203,190.25,190.13,3.1]
[1735537011868,2.6349,190.17,190.13,3.1]
[1735537012463,1.5203,190.25,190.13,3.1]
[1735537012969,3.1,190.24,190.13,3.1]
[1735537013767,13.2901531,190.23,190.13,3.1]
[1735537014464,2.635,190.16,190.13,3.1]
[1735537015468,13.2901531,190.23,190.12,3.1]
[1735537015469,2.6352,190.15,190.12,3.1]
[1735537015672,2.6352,190.15,190.13,4.09208184]
[1735537015873,2.6352,190.15,190.12,3.1]
[1735537016065,2.6352,190.15,190.13,4.0920529]
[1735537016265,2.6352,190.15,190.12,3.1]
[1735537016466,2.6352,190.15,190.13,4.09202334]
[1735537016667,2.6352,190.15,190.14,4.09202334]
[1735537020679,2.6349,190.17,190.14,4.09202334]
[1735537020873,2.6349,190.17,190.15,4.09202334]
[1735537021180,1.5203,190.25,190.16,4.09202334]
[1735537021379,1.5203,190.25,190.13,2.6353]
[1735537021380,2.6347,190.19,190.13,2.6353]
[1735537021573,1.5203,190.25,190.14,4.10524927]
[1735537021773,1.5203,190.25,190.15,4.10524927]
[1735537021980,2.6348,190.18,190.16,4.10524927]
[1735537022180,2.6348,190.18,190.17,4.10524927]
[1735537024481,2.6348,190.18,190.17,4.10774249]
[1735537025182,13.2901531,190.2,190.1,1.6051]
[1735537025478,13.2901531,190.2,190.11,4.1084788]
[1735537025673,13.2901531,190.2,190.12,4.1084788]
[1735537025872,13.2901531,190.2,190.1,1.6051]
[1735537026083,13.2901531,190.2,190.11,4.10808009]
[1735537026376,13.2901531,190.2,190.1,1.6051]
[1735537026575,13.2901531,190.2,190.11,4.10778196]
[1735537026783,13.2901531,190.2,190.1,1.6051]
[1735537026972,13.2901531,190.2,190.11,4.10783481]
[1735537027172,13.2901531,190.2,190.1,1.6051]
[1735537027582,2.6356,190.12,190.11,4.10778868]
[1735537028080,42.0422886,190.23,190.11,4.10778868]
[1735537028379,42.0422886,190.23,190.12,4.10778868]
[1735537028579,42.0422886,190.23,190.13,7.20778868]
[1735537028782,13.2901531,190.2,190.09,1.5722]
[1735537028982,13.2901531,190.2,190.1,4.10731387]
[1735537029184,13.2901531,190.2,190.11,4.10731387]
[1735537029383,13.2901531,190.2,190.12,4.10731387]
[1735537029586,13.2901531,190.2,190.09,1.5722]
[1735537029781,3.1,190.21,190.07,3.1]
[1735537029782,2.6357,190.11,190.1,4.10759561]
[1735537030580,2.636,190.09,190.07,11.62201458]
[1735537030878,2.636,190.09,190.08,4.10735555]
[1735537031083,8.52201458,190.14,190.08,4.10742774]
[1735537031284,8.52201458,190.12,190.05,8.52201458]
[1735537031480,8.52201458,190.12,190.06,4.10659562]
[1735537031685,2.636,190.09,190.07,4.10659562]
[1735537031884,2.636,190.09,190.08,4.10659562]
[1735537033480,2.6366,190.05,190.01,4.6332]
[1735537033682,2.6366,190.05,190.02,7.20472253]
[1735537033885,2.6366,190.05,190.03,4.10472253]
[1735537034085,2.6366,190.05,190.04,4.10472253]
[1735537034485,2.6369,190.02,190.01,3.1]
[1735537034687,2.6369,190.02,190.01,7.20292723]
[1735537035281,2.6369,190.02,190.01,4.10292723]
[1735537035486,2.6372,190.0,189.99,3.1]
[1735537035781,2.6372,190.0,189.99,4.10017767]
[1735537036081,2.6372,190.0,189.95,3.1]
[1735537036281,2.6372,190.0,189.96,4.10034894]
[1735537036479,2.6374,189.99,189.95,3.1]
[1735537036682,2.6374,189.99,189.96,4.09753097]
[1735537036882,2.6374,189.99,189.97,4.09753097]
[1735537037191,2.6374,189.99,189.95,3.1]
[1735537037394,2.6375,189.98,189.96,4.09720205]
[1735537037588,3.1,190.06,189.94,13.31659179]
[1735537037788,3.1,190.06,189.95,4.0948511]
[1735537037982,2.6377,189.96,189.92,6.1851]
[1735537038194,2.6377,189.96,189.93,4.0949975]
[1735537038492,2.6377,189.96,189.94,4.0949975]
[1735537038693,2.6377,189.96,189.92,4.6118]
[1735537038895,2.6377,189.96,189.93,4.09292101]
[1735537039093,2.6377,189.96,189.94,4.09292101]
[1735537039285,3.1,190.06,189.91,13.31659179]
[1735537039286,13.31659179,190.01,189.91,13.31659179]
[1735537039490,13.31659179,190.01,189.9,4.5753]
[1735537039693,16.41659179,190.01,189.91,4.09055975]
[1735537039993,16.41659179,190.01,189.9,4.5753]
[1735537040390,16.41659179,190.01,189.9,3.1]
[1735537040592,2.6382,189.93,189.9,3.1]
[1735537042499,2.638,189.94,189.9,3.1]
[1735537043188,2.6376,189.97,189.9,3.1]
[1735537043384,4.6927,190.0,189.9,3.1]
[1735537043985,2.638,189.94,189.9,3.1]
[1735537044994,4.6927,190.0,189.9,3.1]
[1735537045198,2.6383,189.93,189.88,16.41659179]
[1735537045391,13.31659179,189.98,189.88,3.1]
[1735537045591,13.31659179,189.95,189.84,1.6353]
[1735537045793,13.31659179,189.95,189.84,4.7353]
[1735537046095,2.6393,189.86,189.84,3.1]
[1735537046294,13.31659179,189.92,189.84,3.1]
[1735537047089,2.6392,189.86,189.84,3.1]
[1735537047287,13.31659179,189.92,189.84,3.1]
[1735537047889,2.6393,189.86,189.81,4.5825]
[1735537048299,2.6393,189.86,189.81,1.4825]
[1735537048500,13.31659179,189.92,189.81,4.5825]
[1735537048694,2.6396,189.83,189.81,4.5825]
[1735537048890,1.5132,189.91,189.81,4.5825]
[1735537049095,2.6389,189.88,189.81,4.5825]
[1735537049302,1.5132,189.91,189.81,1.4825]
[1735537049896,2.6393,189.86,189.81,1.4825]
[1735537050901,13.31659179,189.95,189.82,13.31659179]
[1735537051796,13.31659179,189.95,189.84,2.6394]
[1735537052000,1.6329,189.97,189.85,16.39659179]
[1735537052197,1.6329,189.97,189.88,13.31659179]
[1735537052494,2.638,189.95,189.88,15.95539179]
[1735537052894,13.31659179,189.98,189.88,15.95539179]
[1735537053199,13.31659179,189.98,189.89,2.6387]
[1735537053394,13.31659179,190.01,189.9,3.08]
[1735537053597,2.6373,189.99,189.9,3.08]
[1735537053802,13.31659179,190.01,189.9,3.08]
[1735537054196,13.31659179,190.01,189.91,13.31659179]
[1735537054396,14.94949179,190.04,189.93,2.6381]
[1735537054697,2.6376,189.97,189.91,13.31659179]
[1735537054897,14.94949179,190.04,189.91,13.31659179]
[1735537055402,14.94949179,190.04,189.93,2.6381]
[1735537055701,14.94949179,190.04,189.91,13.31659179]
[1735537056098,2.6377,189.97,189.91,13.31659179]
[1735537056501,13.31659179,190.01,189.89,1.4794]
[1735537056706,2.638,189.94,189.89,4.5594]
[1735537057196,13.31659179,190.01,189.89,4.5594]
[1735537057398,2.6379,189.95,189.89,4.5594]
[1735537058102,2.6377,189.97,189.89,4.5594]
[1735537058909,2.6378,189.96,189.89,4.5594]
[1735537059701,13.31659179,190.01,189.89,4.5594]
[1735537059899,2.638,189.95,189.89,7.1981]
[1735537062009,13.31659179,190.01,189.89,4.5594]
[1735537062308,3.08,190.0,189.89,1.4794]
[1735537062909,13.31659179,189.98,189.88,3.08]
[1735537063105,13.31659179,189.98,189.86,4.7121]
[1735537063510,2.6385,189.91,189.86,4.7121]
[1735537063907,2.6387,189.89,189.86,1.6321]
[1735537065512,13.31659179,189.95,189.86,4.2712]
[1735537065716,13.31659179,189.98,189.86,7.3512]
[1735537066015,2.6384,189.92,189.86,7.3512]
[1735537069023,13.31659179,189.98,189.86,4.7121]
[1735537069219,13.31659179,190.01,189.87,17.38938067]
[1735537069415,13.31659179,190.01,189.9,13.31659179]
[1735537069613,2.6375,189.98,189.91,5.7183]
[1735537069819,2.6375,189.98,189.91,4.6948]
[1735537070014,2.6375,189.98,189.92,4.0752848]
[1735537070318,2.6375,189.98,189.91,4.6948]
[1735537070522,2.6375,189.98,189.92,4.07687204]
[1735537070722,2.6376,189.97,189.93,4.07742533]
[1735537070922,2.6376,189.97,189.91,7.3331]
[1735537071122,2.6376,189.97,189.92,4.07741096]
[1735537071319,14.94949179,190.04,189.93,4.07741096]
[1735537071519,2.6378,189.96,189.91,7.3331]
[1735537071721,2.6378,189.96,189.92,4.07971246]
[1735537072024,14.94949179,190.04,189.91,7.3331]
[1735537072025,2.6379,189.95,189.93,4.07971246]
[1735537072323,2.6379,189.95,189.91,4.6948]
[1735537072520,2.6379,189.95,189.92,4.08028844]
[1735537072716,2.6379,189.95,189.91,4.6948]
[1735537072918,14.94949179,190.04,189.92,6.72062288]
[1735537073118,14.94949179,190.04,189.93,4.08232288]
[1735537073425,14.94949179,190.04,189.94,4.08588529]
[1735537073623,2.6377,189.97,189.92,2.6383]
[1735537073826,13.31659179,190.01,189.93,4.08635106]
[1735537074024,13.31659179,190.01,189.94,4.08638363]
[1735537074225,13.31659179,190.01,189.9,16.39659179]
[1735537074527,13.31659179,190.01,189.91,4.08638363]
[1735537074727,13.31659179,190.01,189.92,4.08638363]
[1735537075026,13.31659179,190.01,189.93,4.08638363]
[1735537075221,14.94949179,190.04,189.94,4.08638363]
[1735537075424,14.94949179,190.04,189.95,4.08638363]
[1735537075625,14.94949179,190.04,189.93,2.6381]
[1735537075828,2.6375,189.99,189.94,4.09276007]
[1735537076023,2.6375,189.99,189.95,4.09276007]
[1735537076226,2.6378,189.96,189.9,16.39659179]
[1735537076524,13.31659179,190.01,189.91,4.09519848]
[1735537076721,13.31659179,190.01,189.92,4.09519848]
[1735537076922,13.31659179,190.01,189.93,4.09519848]
[1735537077125,13.31659179,190.01,189.94,4.0958497]
[1735537077324,13.31659179,190.01,189.95,4.0958497]
[1735537077520,13.31659179,190.01,189.9,16.39659179]
[1735537077725,2.6377,189.97,189.91,6.73707125]
[1735537077926,13.31659179,190.01,189.92,4.09867125]
[1735537078222,13.31659179,190.01,189.93,4.09867125]
[1735537078422,2.6379,189.96,189.94,4.09867125]
[1735537078624,13.31659179,190.01,189.9,3.08]
[1735537078921,13.31659179,190.01,189.91,4.10233701]
[1735537079124,13.31659179,190.01,189.92,4.10233701]
[1735537079423,13.31659179,190.01,189.93,4.10233701]
[1735537079629,2.6378,189.96,189.94,4.10233701]
[1735537079823,13.31659179,190.01,189.95,4.10233701]
[1735537080024,13.31659179,190.01,189.9,3.08]
[1735537080025,14.94949179,190.04,189.96,4.10382505]
[1735537080225,2.6372,190.0,189.97,4.10382505]
[1735537080424,2.6372,190.0,189.98,4.10471772]
[1735537080626,14.94949179,190.04,189.95,3.1]
[1735537080828,2.6374,189.99,189.96,4.10480454]
[1735537081131,2.6374,189.99,189.97,4.10480454]
[1735537081331,2.6374,189.99,189.95,3.1]
[1735537081634,14.94949179,190.04,189.96,4.10543887]
[1735537081825,2.6375,189.98,189.95,3.1]
[1735537082030,2.6375,189.98,189.96,4.10571491]
[1735537082232,2.6375,189.98,189.95,3.1]
[1735537082429,2.6375,189.98,189.96,4.10581613]
[1735537082631,2.6375,189.98,189.95,3.1]
[1735537082831,7.68089009,190.0,189.96,4.10633226]
[1735537083022,7.68089009,190.0,189.95,3.1]
[1735537083226,7.68089009,190.0,189.96,4.10639085]
[1735537083431,7.68089009,190.0,189.95,3.1]
[1735537083631,2.6376,189.97,189.96,4.10656107]
[1735537083933,7.68089009,190.0,189.96,4.10656107]
[1735537084236,2.6374,189.99,189.97,4.10656107]
[1735537084430,2.6374,189.99,189.95,3.1]
[1735537084630,7.68089009,190.0,189.95,3.1]
[1735537084932,2.6376,189.97,189.96,4.10611943]
[1735537085126,7.68089009,189.98,189.95,3.1]
[1735537085330,7.68089009,189.98,189.91,10.78089009]
[1735537085535,2.6381,189.94,189.92,4.10677857]
[1735537085737,2.6381,189.94,189.93,4.10677857]
[1735537086434,7.68089009,189.98,189.93,4.10677857]
[1735537086622,7.68089009,189.98,189.91,10.78089009]
[1735537086825,7.68089009,189.98,189.92,4.10650077]
[1735537087031,7.68089009,189.98,189.93,4.10650077]
[1735537087230,7.68089009,189.98,189.94,4.1067206]
[1735537087534,7.68089009,189.98,189.91,10.78089009]
[1735537087933,2.638,189.95,189.92,4.10649473]
[1735537088126,2.638,189.95,189.93,4.10649473]
[1735537088322,2.638,189.95,189.91,7.68089009]
[1735537088523,2.638,189.95,189.92,4.10648093]
[1735537088729,2.638,189.95,189.93,4.10648093]
[1735537089030,2.638,189.95,189.91,7.68089009]
[1735537089230,2.638,189.95,189.92,4.10671232]
[1735537089430,2.638,189.95,189.93,4.10671232]
[1735537089624,2.638,189.95,189.94,4.10671232]
[1735537092139,1.6329,190.04,189.94,4.10671232]
[1735537092337,9.21806426,190.05,189.98,7.68089009]
[1735537092636,2.6367,190.04,190.0,7.68089009]
[1735537092826,2.6367,190.04,190.01,4.10782261]
[1735537093032,36.85117247,190.08,190.02,7.68089009]
[1735537093634,2.6368,190.03,190.02,7.68089009]
[1735537093835,36.85117247,190.08,190.02,7.68089009]
[1735537093836,36.85117247,190.08,190.02,11.78808591]
[1735537094038,36.85117247,190.08,189.99,3.171]
[1735537094340,2.6369,190.02,190.0,4.10596977]
[1735537094641,2.6369,190.02,189.99,3.171]
[1735537094642,13.32538986,190.09,189.99,3.171]
[1735537094839,13.32538986,190.06,189.94,3.1]
[1735537095038,13.32538986,190.06,189.95,4.10814684]
[1735537095237,13.32538986,190.06,189.96,4.10814684]
[1735537095435,13.32538986,190.06,189.97,4.10814684]
[1735537095639,2.6376,189.98,189.94,3.1]
[1735537095841,13.32538986,190.06,189.95,4.11010511]
[1735537096041,2.6379,189.96,189.94,3.1]
[1735537096240,2.6379,189.96,189.95,4.11064892]
[1735537096436,2.6379,189.96,189.94,3.1]
[1735537096639,2.6379,189.96,189.95,4.11059852]
[1735537096841,2.638,189.94,189.91,3.1]
[1735537097037,2.638,189.94,189.92,4.11191495]
[1735537097242,2.638,189.94,189.93,4.11191495]
[1735537103850,2.638,189.94,189.93,4.112383]
[1735537106252,2.638,189.94,189.88,5.7388]
[1735537106447,2.638,189.94,189.89,4.11249961]
[1735537106652,2.638,189.94,189.9,4.11249961]
[1735537106947,2.6379,189.96,189.91,4.11249961]
[1735537107252,3.1421,190.02,189.92,4.11249961]
[1735537107550,2.6379,189.95,189.93,7.21249961]
[1735537107743,2.6379,189.95,189.94,4.11249961]
[1735537108649,2.6375,189.98,189.94,4.11249961]
[1735537108946,13.32538986,190.03,189.95,4.11249961]
[1735537109142,2.6373,189.99,189.96,4.11249961]
[1735537109347,32.27028238,190.05,189.97,4.11270095]
[1735537109547,32.27028238,190.05,189.93,16.42538986]
[1735537109755,2.6379,189.95,189.94,4.11343279]
[1735537110952,16.48538986,190.0,189.89,3.16]
[1735537111154,16.48538986,190.0,189.9,4.11487135]
[1735537111345,16.48538986,190.0,189.91,4.11487135]
[1735537111551,2.6382,189.93,189.92,4.11487135]
[1735537111855,3.095,189.99,189.92,4.11487135]
[1735537112045,3.095,189.99,189.93,4.11487135]
[1735537112252,2.638,189.95,189.94,4.11487135]
[1735537112946,2.6382,189.93,189.89,3.16]
[1735537113147,2.6382,189.93,189.9,4.11647764]
[1735537113352,2.6382,189.93,189.91,4.11647764]
[1735537113551,2.6382,189.93,189.92,4.11647764]
[1735537114851,2.6376,189.97,189.92,4.11715265]
[1735537115058,3.095,189.99,189.93,4.11715265]
[1735537115353,3.095,189.99,189.94,4.11715265]
[1735537115546,2.6383,189.93,189.89,3.16]
[1735537115750,2.6383,189.93,189.9,4.11698327]
[1735537115950,3.095,189.99,189.91,4.11698327]
[1735537116251,3.095,189.99,189.92,4.11698327]
[1735537116553,3.095,189.99,189.93,4.11698327]
[1735537116756,2.6385,189.91,189.88,3.16]
[1735537116959,2.6385,189.91,189.89,4.11698898]
[1735537117147,2.6385,189.91,189.9,4.11698898]
[1735537117754,2.6386,189.9,189.88,3.16]
[1735537117957,2.6386,189.9,189.89,4.11683474]
[1735537118648,2.6386,189.9,189.89,4.11650343]
[1735537122257,2.6386,189.9,189.85,7.68465561]
[1735537122258,7.68465561,189.93,189.85,7.68465561]
[1735537122457,7.68465561,189.93,189.86,4.11537573]
[1735537122757,7.68465561,189.93,189.87,4.11537573]
[1735537122962,2.6387,189.89,189.88,4.11537573]
[1735537124161,7.68465561,189.93,189.85,7.68465561]
[1735537124361,7.68465561,189.93,189.86,4.11429122]
[1735537124560,7.68465561,189.93,189.87,4.11429122]
[1735537124762,7.68465561,189.93,189.88,4.11429122]
[1735537124959,7.68465561,189.93,189.89,4.11413263]
[1735537125163,7.68465561,189.93,189.85,7.68465561]
[1735537125358,2.6385,189.91,189.89,7.68465561]
[1735537125560,7.68465561,189.98,189.9,4.11356761]
[1735537125760,7.68465561,189.98,189.91,4.11356761]
[1735537125965,2.6383,189.93,189.92,4.11356761]
[1735537127559,2.6378,189.96,189.92,4.11356761]
[1735537127760,2.6378,189.96,189.93,4.11356761]
[1735537127959,7.68465561,190.0,189.94,4.11356761]
[1735537128160,2.6376,189.97,189.95,4.11356761]
[1735537128466,7.68465561,190.0,189.93,7.68465561]
[1735537128655,7.68465561,190.0,189.94,4.11297328]
[1735537128969,7.68465561,190.0,189.95,4.11297328]
[1735537129269,2.6376,189.97,189.96,4.11297328]
[1735537130871,2.6376,189.97,189.93,7.68465561]
[1735537131070,2.6376,189.97,189.94,4.11292025]
[1735537131267,2.6378,189.96,189.95,4.11292025]
[1735537131464,7.68465561,189.98,189.95,4.11298883]
[1735537131657,7.68465561,189.98,189.91,7.68465561]
[1735537131858,7.68465561,189.98,189.92,4.11301446]
[1735537132060,7.68465561,190.0,189.93,4.11301446]
[1735537132265,7.68465561,190.0,189.94,4.11301446]
[1735537132467,2.6376,189.98,189.95,4.11301446]
[1735537132763,7.68465561,190.0,189.93,7.68465561]
[1735537132764,7.68465561,190.01,189.96,4.11301446]
[1735537132961,2.6372,190.0,189.97,4.11301446]
[1735537133156,7.68465561,190.01,189.93,7.68465561]
[1735537133361,7.68465561,190.01,189.94,4.11248222]
[1735537133568,2.6377,189.97,189.95,4.11248222]
[1735537133768,2.6377,189.97,189.93,7.68465561]
[1735537133769,2.6377,189.97,189.96,4.11248222]
[1735537134067,2.6377,189.97,189.96,4.11247696]
[1735537135268,2.6379,189.95,189.94,3.16]
[1735537135465,2.6379,189.95,189.94,7.27241012]
[1735537137661,2.6379,189.95,189.94,4.11241012]
[1735537140273,7.68465561,189.97,189.94,4.11727474]
[1735537140469,7.68465561,189.99,189.95,4.11727474]
[1735537140774,7.68465561,189.99,189.96,4.11727474]
[1735537140976,2.638,189.94,189.91,7.68465561]
[1735537141169,11.99657059,190.04,189.93,7.68465561]
[1735537141371,7.68465561,190.03,189.95,7.68465561]
[1735537141674,2.6374,189.99,189.96,4.11715954]
[1735537141875,2.6374,189.99,189.97,4.11715954]
[1735537142071,2.6374,189.99,189.98,4.11715954]
[1735537142479,2.6374,189.99,189.98,4.11676229]
[1735537144080,7.68465561,190.03,189.95,10.80465561]
[1735537144279,2.6375,189.98,189.96,4.11618872]
[1735537144583,2.6375,189.98,189.97,4.11618872]
[1735537145484,2.6377,189.97,189.95,3.12]
[1735537145684,2.6377,189.97,189.96,4.11564252]
[1735537147384,2.6381,189.93,189.92,3.12]
[1735537147586,2.6381,189.93,189.92,7.23580276]
[1735537148484,2.6381,189.93,189.92,3.12]
[1735537148680,2.6381,189.93,189.92,7.23579901]
[1735537151478,2.6381,189.93,189.92,3.12]
[1735537151679,2.6381,189.93,189.92,7.23579894]
[1735537152084,2.6381,189.93,189.92,3.12]
[1735537152291,2.6381,189.93,189.92,4.11596437]
[1735537152588,7.68465561,190.01,189.92,4.11596437]
[1735537152787,7.68465561,190.03,189.96,7.68465561]
[1735537153092,7.29257059,190.04,190.0,7.68465561]
[1735537153290,2.6369,190.03,190.0,7.68465561]
[1735537153589,7.29257059,190.04,190.0,7.68465561]
[1735537153786,7.68465561,190.07,190.01,4.11478001]
[1735537154090,7.68465561,190.07,190.0,7.68465561]
[1735537154287,2.6369,190.02,190.01,4.11339336]
[1735537156991,2.6371,190.01,189.99,3.12]
[1735537157192,7.68465561,190.07,190.0,11.79406773]
[1735537157383,7.68465561,190.07,190.01,4.10941212]
[1735537157587,7.68465561,190.07,190.0,7.68465561]